fUST/lending_fUST_20240930
["ID","MTS","AMOUNT","RATE_DAILY","PERIOD"]
[339494636,1727631867193,500.0,0.00014118,2]
[339494637,1727631867226,968.69979195,0.00014118,2]
[339494638,1727631867363,500.0,0.00014118,2]
[339494639,1727631867395,500.0,0.00014118,2]
[339494641,1727631867427,500.0,0.00014118,2]
[339494643,1727631867464,500.0,0.00014118,2]
[339494644,1727631867502,500.0,0.00014118,2]
[339494645,1727631867532,500.0,0.00014118,2]
[339494646,1727631867565,968.69979195,0.00014118,2]
[339494647,1727631867595,500.0,0.00014118,2]
[339494648,1727631867631,968.69979195,0.00014118,2]
[339494649,1727631867661,500.0,0.00014118,2]
[339494650,1727631867698,500.0,0.00014118,2]
[339494651,1727631867731,968.69979195,0.00014118,2]
[339494652,1727631867763,500.0,0.00014118,2]
[339494654,1727631867795,968.69979195,0.00014118,2]
[339494655,1727631867824,500.0,0.00014118,2]
[339494656,1727631867859,500.0,0.00014118,2]
[339494657,1727631867891,968.69979195,0.00014118,2]
[339494658,1727631867928,500.0,0.00014118,2]
[339494660,1727631868199,968.69979195,0.00014118,2]
[339494661,1727631868231,500.0,0.00014118,2]
[339494662,1727631868263,968.69979195,0.00014118,2]
[339494663,1727631868298,500.0,0.00014118,2]
[339494665,1727631868331,968.69979195,0.00014118,2]
[339494667,1727631868370,500.0,0.00014118,2]
[339494669,1727631868402,968.69979195,0.00014118,2]
[339494670,1727631868432,500.0,0.00014118,2]
[339494671,1727631868464,968.69979195,0.00014118,2]
[339494672,1727631868504,500.0,0.00014118,2]
[339494673,1727631868542,968.69979195,0.00014118,2]
[339494674,1727631868576,500.0,0.00014118,2]
[339494675,1727631868606,500.0,0.00014118,2]
[339494677,1727631868639,968.69979195,0.00014118,2]
[339494679,1727631868679,500.0,0.00014118,2]
[339494680,1727631868714,500.0,0.00014118,2]
[339494681,1727631868746,968.69979195,0.00014118,2]
[339494682,1727631868781,500.0,0.00014118,2]
[339494683,1727631868832,968.69979195,0.00014118,2]
[339494684,1727631868864,500.0,0.00014118,2]
[339494685,1727631868900,500.0,0.00014118,2]
[339494686,1727631868940,500.0,0.00014118,2]
[339494688,1727631868972,968.69979195,0.00014118,2]
[339494689,1727631869004,500.0,0.00014118,2]
[339494690,1727631869035,500.0,0.00014118,2]
[339494691,1727631869071,968.69979195,0.00014118,2]
[339494692,1727631869103,500.0,0.00014118,2]
[339494693,1727631869142,968.69979195,0.00014118,2]
[339494694,1727631869171,500.0,0.00014118,2]
[339494695,1727631869207,500.0,0.00014118,2]
[339494697,1727631869239,968.69979195,0.00014118,2]
[339494699,1727631869278,968.69979195,0.00014118,2]
[339494700,1727631869310,500.0,0.00014118,2]
[339494701,1727631869351,500.0,0.00014118,2]
[339494702,1727631869385,968.69979195,0.00014118,2]
[339494703,1727631869438,500.0,0.00014118,2]
[339494704,1727631869475,500.0,0.00014118,2]
[339494705,1727631869508,968.69979195,0.00014118,2]
[339494707,1727631869540,500.0,0.00014118,2]
[339494709,1727631869576,968.69979195,0.00014118,2]
[339494711,1727631869608,500.0,0.00014118,2]
[339494712,1727631869650,968.69979195,0.00014118,2]
[339494713,1727631869681,500.0,0.00014118,2]
[339494714,1727631869722,500.0,0.00014118,2]
[339494715,1727631869757,968.69979195,0.00014118,2]
[339494716,1727631869799,968.69979195,0.00014118,2]
[339494717,1727631869862,968.69979195,0.00014118,2]
[339494720,1727631869935,968.69979195,0.00014118,2]
[339494722,1727631869972,968.69979195,0.00014118,2]
[339494723,1727631870010,968.69979195,0.00014118,2]
[339494724,1727631870048,968.69979195,0.00014118,2]
[339494725,1727631870088,968.69979195,0.00014118,2]
[339494726,1727631870131,968.69979195,0.00014118,2]
[339494728,1727631870166,968.69979195,0.00014118,2]
[339494729,1727631870203,968.69979195,0.00014118,2]
[339494731,1727631870235,968.69979195,0.00014118,2]
[339494732,1727631870267,968.69979195,0.00014118,2]
[339494733,1727631870305,968.69979195,0.00014118,2]
[339494827,1727631879622,1000.0,0.00014019,2]
[339494839,1727631881857,500.0,0.00014118,2]
[339494841,1727631881901,1083.04720077,0.00014118,2]
[339494843,1727631881954,500.0,0.00014118,2]
[339494844,1727631882026,1083.04720077,0.00014118,2]
[339494846,1727631882098,500.0,0.00014118,2]
[339494847,1727631882143,1083.04720077,0.00014118,2]
[339494848,1727631882185,500.0,0.00014118,2]
[339494850,1727631882227,1083.04720077,0.00014118,2]
[339494852,1727631882270,500.0,0.00014118,2]
[339494854,1727631882313,1083.04720077,0.00014118,2]
[339494856,1727631882355,500.0,0.00014118,2]
[339494857,1727631882396,500.0,0.00014118,2]
[339494858,1727631882442,500.0,0.00014118,2]
[339494859,1727631882485,500.0,0.00014118,2]
[339494860,1727631882541,500.0,0.00014118,2]
[339494863,1727631882642,500.0,0.00014118,2]
[339494865,1727631882694,500.0,0.00014118,2]
[339494866,1727631882744,500.0,0.00014118,2]
[339494867,1727631882796,500.0,0.00014118,2]
[339494868,1727631882848,500.0,0.00014118,2]
[339494869,1727631882904,500.0,0.00014118,2]
[339494871,1727631882961,528.17913526,0.00014118,2]
[339494873,1727631883029,500.0,0.00014118,2]
[339494874,1727631883075,500.0,0.00014118,2]
[339494876,1727631883201,500.0,0.00014118,2]
[339494877,1727631883328,500.0,0.00014118,2]
[339494878,1727631883380,500.0,0.00014118,2]
[339494907,1727631886852,255.112105,0.00013699,2]
[339495006,1727631898077,24900.0,0.00013154,2]
[339495014,1727631899901,160.0,0.0001146,2]
[339495015,1727631900407,160.0,0.0001337,2]
[339495021,1727631951212,2486.9015628,0.00013149,2]
[339495022,1727631993274,1013.14159685,0.00021,60]
[339495029,1727632133802,162.82728621,0.00014044,2]
[339495089,1727632237763,-1000.0,0.00014135,2]
[339495090,1727632237773,-1113.14281745,0.00014135,2]
[339495091,1727632237783,-300.0,0.00014142,2]
[339495092,1727632237792,-300.0,0.00014142,2]
[339495093,1727632237802,-500.0,0.00014142,2]
[339495094,1727632237811,-500.0,0.00014142,2]
[339495095,1727632237821,-500.0,0.00014142,2]
[339495096,1727632237830,-175.66711955,0.00014142,2]
[339495097,1727632237840,-500.0,0.00014142,2]
[339495098,1727632237849,-500.0,0.00014142,2]
[339495099,1727632237859,-500.0,0.00014142,2]
[339495100,1727632237868,-363.15016039,0.00014142,2]
[339495101,1727632237878,-500.0,0.00014142,2]
[339495102,1727632237888,-500.0,0.00014142,2]
[339495103,1727632237897,-500.0,0.00014142,2]
[339495104,1727632237907,-500.0,0.00014142,2]
[339495105,1727632237917,-500.0,0.00014142,2]
[339495106,1727632237926,-500.0,0.00014142,2]
[339495107,1727632237936,-500.0,0.00014142,2]
[339495108,1727632237946,-500.0,0.00014142,2]
[339495109,1727632237955,-500.0,0.00014142,2]
[339495110,1727632237965,-500.0,0.00014142,2]
[339495111,1727632237974,-500.0,0.00014142,2]
[339495112,1727632237983,-500.0,0.00014142,2]
[339495113,1727632237993,-500.0,0.00014142,2]
[339495114,1727632238002,-500.0,0.00014142,2]
[339495115,1727632238013,-500.0,0.00014142,2]
[339495116,1727632238022,-500.0,0.00014142,2]
[339495117,1727632238032,-500.0,0.00014142,2]
[339495118,1727632238042,-500.0,0.00014142,2]
[339495119,1727632238051,-500.0,0.00014142,2]
[339495120,1727632238060,-500.0,0.00014142,2]
[339495121,1727632238070,-500.0,0.00014142,2]
[339495122,1727632238079,-500.0,0.00014142,2]
[339495123,1727632238089,-500.0,0.00014142,2]
[339495124,1727632238098,-500.0,0.00014142,2]
[339495125,1727632238108,-500.0,0.00014142,2]
[339495126,1727632238118,-500.0,0.00014142,2]
[339495127,1727632238127,-500.0,0.00014142,2]
[339495128,1727632238137,-500.0,0.00014142,2]
[339495129,1727632238149,-500.0,0.00014142,2]
[339495130,1727632238160,-500.0,0.00014142,2]
[339495131,1727632238170,-500.0,0.00014142,2]
[339495132,1727632238179,-500.0,0.00014142,2]
[339495133,1727632238190,-500.0,0.00014142,2]
[339495134,1727632238200,-500.0,0.00014142,2]
[339495135,1727632238209,-1801.59818144,0.00014143,2]
[339495136,1727632238220,-492.47907,0.00014149,2]
[339495137,1727632238230,-492.47907,0.00014149,2]
[339495138,1727632238239,-151.0,0.00014149,2]
[339495139,1727632238249,-151.0,0.00014149,2]
[339495140,1727632238259,-500.0,0.00014151,2]
[339495141,1727632238268,-500.0,0.00014151,2]
[339495142,1727632238277,-500.0,0.00014151,2]
[339495143,1727632238496,-500.0,0.00014151,2]
[339495144,1727632238522,-500.0,0.00014151,2]
[339495145,1727632238532,-401.89285912,0.00014151,2]
[339495146,1727632238541,-283.91444277,0.00014151,2]
[339495147,1727632238551,-500.0,0.00014151,2]
[339495148,1727632238560,-500.0,0.00014151,2]
[339495149,1727632238569,-500.0,0.00014151,2]
[339495150,1727632238579,-500.0,0.00014151,2]
[339495151,1727632238588,-500.0,0.00014151,2]
[339495152,1727632238597,-296.29103317,0.00014151,2]
[339495153,1727632238607,-198.88899233,0.00014151,2]
[339495154,1727632238616,-185167.258972,0.00014152,2]
[339495155,1727632238626,-143131.701252,0.00014152,2]
[339495156,1727632238635,-151.0,0.00014155,2]
[339495157,1727632238644,-151.0,0.00014155,2]
[339495158,1727632238654,-152.936498,0.00014155,2]
[339495159,1727632238664,-151.0,0.00014155,2]
[339495160,1727632238673,-151.0,0.00014155,2]
[339495161,1727632238682,-1442.631507,0.00014155,2]
[339495162,1727632238692,-220.725197,0.00014155,2]
[339495163,1727632238701,-1442.631507,0.00014155,2]
[339495164,1727632238710,-220.725197,0.00014155,2]
[339495165,1727632238719,-151.0,0.00014155,2]
[339495166,1727632238729,-151.0,0.00014155,2]
[339495167,1727632238739,-157.375422,0.00014155,2]
[339495168,1727632238749,-151.0,0.00014155,2]
[339495169,1727632238759,-587.535755,0.00014155,2]
[339495170,1727632238768,-587.535755,0.00014155,2]
[339495171,1727632238777,-151.0,0.00014155,2]
[339495172,1727632238787,-151.0,0.00014155,2]
[339495173,1727632238797,-151.0,0.00014155,2]
[339495174,1727632238806,-188.870103,0.00014155,2]
[339495175,1727632238816,-188.870103,0.00014155,2]
[339495176,1727632238825,-182.52456,0.00014155,2]
[339495177,1727632238835,-182.52456,0.00014155,2]
[339495178,1727632238844,-3000.0,0.00014156,2]
[339495179,1727632238853,-79255.85651709,0.00014156,2]
[339495180,1727632238863,-492.47907,0.00014165,2]
[339495181,1727632238872,-492.47907,0.00014165,2]
[339495182,1727632238882,-151.0,0.00014165,2]
[339495183,1727632238892,-151.0,0.00014165,2]
[339495184,1727632238901,-500.0,0.00014173,2]
[339495185,1727632238911,-500.0,0.00014173,2]
[339495186,1727632238920,-500.0,0.00014173,2]
[339495187,1727632238930,-500.0,0.00014173,2]
[339495188,1727632238939,-500.0,0.00014173,2]
[339495189,1727632238948,-500.0,0.00014173,2]
[339495190,1727632238959,-500.0,0.00014173,2]
[339495191,1727632238968,-502.25439013,0.00014173,2]
[339495192,1727632238979,-500.0,0.00014173,2]
[339495193,1727632238989,-501.28150447,0.00014173,2]
[339495194,1727632238999,-500.0,0.00014173,2]
[339495195,1727632239008,-500.0,0.00014173,2]
[339495196,1727632239017,-500.0,0.00014173,2]
[339495197,1727632239027,-500.0,0.00014173,2]
[339495198,1727632239036,-150.112233,0.000142,2]
[339495199,1727632239046,-150.112233,0.000142,2]
[339495200,1727632239055,-150.112233,0.000142,2]
[339495201,1727632239065,-150.112233,0.000142,2]
[339495202,1727632239074,-150.112233,0.000142,2]
[339495203,1727632239083,-1000.0,0.000142,2]
[339495204,1727632239093,-185167.258972,0.00014226,2]
[339495205,1727632239102,-143131.701252,0.00014226,2]
[339495206,1727632239112,-481.75647507,0.00014227,2]
[339495207,1727632239122,-143131.701252,0.00014236,2]
[339495208,1727632239131,-492.47907,0.00014239,2]
[339495209,1727632239141,-492.47907,0.00014239,2]
[339495210,1727632239151,-151.0,0.00014239,2]
[339495211,1727632239161,-151.0,0.00014239,2]
[339495212,1727632239170,-492.47907,0.00014245,2]
[339495213,1727632239180,-492.47907,0.00014245,2]
[339495214,1727632239190,-151.0,0.00014246,2]
[339495215,1727632239199,-151.0,0.00014246,2]
[339495216,1727632239209,-151.0,0.00014246,2]
[339495217,1727632239220,-151.0,0.00014246,2]
[339495218,1727632239230,-310.0,0.00014246,2]
[339495219,1727632239239,-310.0,0.00014246,2]
[339495220,1727632239249,-310.0,0.00014246,2]
[339495221,1727632239258,-310.0,0.00014246,2]
[339495222,1727632239268,-310.0,0.00014246,2]
[339495223,1727632239277,-310.0,0.00014246,2]
[339495224,1727632239286,-310.0,0.00014246,2]
[339495225,1727632239296,-310.0,0.00014246,2]
[339495226,1727632239306,-310.0,0.00014246,2]
[339495227,1727632239315,-310.0,0.00014246,2]
[339495228,1727632239324,-310.0,0.00014246,2]
[339495229,1727632239334,-310.0,0.00014246,2]
[339495230,1727632239343,-310.0,0.00014246,2]
[339495231,1727632239352,-310.0,0.00014246,2]
[339495232,1727632239362,-310.0,0.00014246,2]
[339495233,1727632239372,-310.0,0.00014246,2]
[339495234,1727632239381,-358.610546,0.00014246,2]
[339495235,1727632239391,-1442.631507,0.00014246,2]
[339495236,1727632239400,-220.725197,0.00014246,2]
[339495237,1727632239410,-1442.631507,0.00014246,2]
[339495238,1727632239420,-220.725197,0.00014246,2]
[339495239,1727632239429,-151.0,0.00014246,2]
[339495240,1727632239439,-151.0,0.00014246,2]
[339495241,1727632239448,-174.079395,0.00014246,2]
[339495242,1727632239458,-234.225719,0.00014246,2]
[339495243,1727632239467,-587.535755,0.00014246,2]
[339495244,1727632239476,-587.535755,0.00014246,2]
[339495245,1727632239486,-221.907952,0.00014246,2]
[339495246,1727632239496,-151.0,0.00014246,2]
[339495248,1727632239505,-151.0,0.00014246,2]
[339495250,1727632239514,-188.870103,0.00014246,2]
[339495252,1727632239524,-188.870103,0.00014246,2]
[339495254,1727632239534,-182.52456,0.00014246,2]
[339495255,1727632239543,-182.52456,0.00014246,2]
[339495256,1727632239553,-151.0,0.00014256,2]
[339495257,1727632239562,-151.0,0.00014256,2]
[339495258,1727632239572,-1282.61491282,0.00014259,2]
[339495259,1727632239581,-500.0,0.00014273,2]
[339495260,1727632239590,-507.64254214,0.00014273,2]
[339495262,1727632239600,-500.0,0.00014273,2]
[339495264,1727632239608,-500.0,0.00014273,2]
[339495266,1727632239618,-607.52506662,0.00014273,2]
[339495268,1727632239627,-500.0,0.00014273,2]
[339495270,1727632239637,-492.47907,0.00014273,2]
[339495272,1727632239646,-492.47907,0.00014273,2]
[339495274,1727632239656,-1000.0,0.00014275,2]
[339495276,1727632239666,-329.61094826,0.00014288,2]
[339495278,1727632239676,-1000.0,0.00014294,2]
[339495280,1727632239686,-1000.0,0.00014299,2]
[339495282,1727632239695,-1000.0,0.00014316,2]
[339495284,1727632239705,-1000.0,0.00014327,2]
[339495286,1727632239714,-1000.0,0.00014329,2]
[339495288,1727632239724,-1000.0,0.00014332,2]
[339495290,1727632239733,-1000.0,0.00014346,2]
[339495292,1727632239743,-1000.0,0.00014346,2]
[339495294,1727632239752,-500.0,0.0001435,2]
[339495296,1727632239760,-500.0,0.0001435,2]
[339495298,1727632239769,-151.0,0.00014359,2]
[339495300,1727632239779,-151.0,0.00014359,2]
[339495302,1727632239788,-151.0,0.00014359,2]
[339495304,1727632239797,-151.0,0.00014359,2]
[339495306,1727632239807,-1442.631507,0.00014359,2]
[339495308,1727632239816,-220.725197,0.00014359,2]
[339495310,1727632239825,-1442.631507,0.00014359,2]
[339495312,1727632239835,-220.725197,0.00014359,2]
[339495314,1727632239844,-151.0,0.00014359,2]
[339495317,1727632239855,-191.701578,0.00014359,2]
[339495319,1727632239865,-174.079395,0.00014359,2]
[339495321,1727632239875,-587.535755,0.00014359,2]
[339495323,1727632239885,-587.535755,0.00014359,2]
[339495325,1727632239897,-151.0,0.00014359,2]
[339495327,1727632239907,-151.0,0.00014359,2]
[339495329,1727632239918,-188.870103,0.00014359,2]
[339495332,1727632239929,-188.870103,0.00014359,2]
[339495334,1727632239939,-182.52456,0.00014359,2]
[339495336,1727632239954,-182.52456,0.00014359,2]
[339495339,1727632239964,-1000.0,0.00014366,2]
[339495341,1727632239974,-151.0,0.00014369,2]
[339495342,1727632239985,-343.802464,0.00014369,2]
[339495344,1727632239995,-448.497834,0.00014369,2]
[339495346,1727632240004,-448.497834,0.00014369,2]
[339495348,1727632240015,-151.0,0.00014369,2]
[339495351,1727632240026,-499.193232,0.00014369,2]
[339495353,1727632240037,-499.193232,0.00014369,2]
[339495355,1727632240047,-151.0,0.00014369,2]
[339495357,1727632240057,-151.0,0.00014369,2]
[339495359,1727632240066,-151.0,0.00014369,2]
[339495361,1727632240076,-151.0,0.00014369,2]
[339495363,1727632240085,-185.742748,0.00014369,2]
[339495365,1727632240095,-185.742748,0.00014369,2]
[339495367,1727632240106,-438.896331,0.00014369,2]
[339495369,1727632240116,-438.896331,0.00014369,2]
[339495372,1727632240126,-721.989734,0.00014369,2]
[339495374,1727632240135,-721.989734,0.00014369,2]
[339495376,1727632240150,-151.0,0.00014369,2]
[339495378,1727632240161,-2526.792654,0.00014369,2]
[339495380,1727632240170,-2526.792654,0.00014369,2]
[339495382,1727632240179,-568.18072,0.00014369,2]
[339495384,1727632240189,-568.18072,0.00014369,2]
[339495386,1727632240198,-1999.174001,0.00014369,2]
[339495388,1727632240209,-1999.174001,0.00014369,2]
[339495390,1727632240220,-30000.0,0.00014369,2]
[339495392,1727632240230,-1000.0,0.00014378,2]
[339495394,1727632240241,-1051.800199,0.00014384,2]
[339495397,1727632240253,-7067.94404438,0.00014384,2]
[339495399,1727632240263,-1000.0,0.0001439,2]
[339495401,1727632240272,-500.0,0.00014392,2]
[339495403,1727632240284,-1000.0,0.000144,2]
[339495405,1727632240295,-1000.0,0.00014407,2]
[339495407,1727632240306,-500.0,0.00014409,2]
[339495409,1727632240315,-500.0,0.00014409,2]
[339495411,1727632240325,-1000.0,0.00014436,2]
[339495413,1727632240335,-1000.0,0.00014437,2]
[339495416,1727632240347,-1000.0,0.00014442,2]
[339495418,1727632240359,-200.05368043,0.0001445,2]
[339495419,1727632240369,-500.0,0.0001445,2]
[339495421,1727632240379,-500.0,0.0001445,2]
[339495423,1727632240388,-1000.0,0.00014451,2]
[339495426,1727632240398,-1000.0,0.00014452,2]
[339495428,1727632240408,-151.0,0.00014469,2]
[339495430,1727632240418,-253.576788,0.00014469,2]
[339495432,1727632240427,-492.47907,0.00014479,2]
[339495434,1727632240437,-492.47907,0.00014479,2]
[339495436,1727632240447,-151.0,0.00014486,2]
[339495438,1727632240458,-492.47907,0.00014488,2]
[339495440,1727632240468,-492.47907,0.00014488,2]
[339495442,1727632240477,-3028.199878,0.00014488,2]
[339495444,1727632240487,-3028.199878,0.00014488,2]
[339495446,1727632240497,-500.7346796,0.00014493,2]
[339495448,1727632240506,-500.0,0.00014493,2]
[339495450,1727632240516,-150.0,0.00014496,2]
[339495452,1727632240526,-1000.0,0.00014498,2]
[339495454,1727632240537,-150.0,0.000145,2]
[339495456,1727632240547,-1000.0,0.00014513,2]
[339495458,1727632240557,-1000.0,0.00014531,2]
[339495460,1727632240566,-1000.0,0.00014551,2]
[339495463,1727632240580,-1000.0,0.00014556,2]
[339495465,1727632240590,-163.759285,0.00014579,2]
[339495467,1727632240600,-1961.822573,0.00014579,2]
[339495469,1727632240610,-1961.822573,0.00014579,2]
[339495471,1727632240619,-151.0,0.00014579,2]
[339495473,1727632240629,-151.0,0.00014579,2]
[339495475,1727632240638,-1543.399105,0.00014579,2]
[339495477,1727632240647,-1543.399105,0.00014579,2]
[339495479,1727632240657,-151.0,0.00014579,2]
[339495481,1727632240667,-335.869279,0.00014579,2]
[339495483,1727632240676,-335.869279,0.00014579,2]
[339495485,1727632240686,-151.0,0.00014579,2]
[339495487,1727632240695,-1511.628364,0.00014579,2]
[339495489,1727632240705,-1511.628364,0.00014579,2]
[339495491,1727632240714,-552.530822,0.00014579,2]
[339495493,1727632240724,-552.530822,0.00014579,2]
[339495495,1727632240733,-151.0,0.00014589,2]
[339495497,1727632240742,-161.083481,0.00014589,2]
[339495499,1727632240752,-161.083481,0.00014589,2]
[339495501,1727632240761,-159.948508,0.00014589,2]
[339495503,1727632240770,-159.948508,0.00014589,2]
[339495505,1727632240780,-151.0,0.00014589,2]
[339495507,1727632240790,-151.0,0.00014589,2]
[339495510,1727632240800,-184.812923,0.00014589,2]
[339495512,1727632240810,-184.812923,0.00014589,2]
[339495514,1727632240820,-151.0,0.00014589,2]
[339495516,1727632240829,-167.483486,0.00014589,2]
[339495518,1727632240838,-167.483486,0.00014589,2]
[339495520,1727632240848,-492.47907,0.00014589,2]
[339495522,1727632240857,-492.479072,0.00014589,2]
[339495524,1727632240866,-151.0,0.00014589,2]
[339495526,1727632240875,-154.833777,0.00014589,2]
[339495528,1727632240885,-157.617237,0.00014589,2]
[339495530,1727632240894,-151.0,0.00014589,2]
[339495532,1727632240903,-1442.631507,0.00014589,2]
[339495534,1727632240915,-220.725197,0.00014589,2]
[339495536,1727632240924,-1442.631507,0.00014589,2]
[339495538,1727632240934,-220.725197,0.00014589,2]
[339495540,1727632240944,-151.0,0.00014589,2]
[339495543,1727632240954,-174.079395,0.00014589,2]
[339495545,1727632240964,-587.535755,0.00014589,2]
[339495547,1727632240973,-587.535755,0.00014589,2]
[339495549,1727632240982,-151.0,0.0001459,2]
[339495551,1727632240991,-151.0,0.0001459,2]
[339495553,1727632241002,-1961.822573,0.0001459,2]
[339495555,1727632241013,-1961.822573,0.0001459,2]
[339495557,1727632241022,-189.023305,0.0001459,2]
[339495559,1727632241032,-151.0,0.0001459,2]
[339495561,1727632241041,-188.870103,0.0001459,2]
[339495563,1727632241051,-188.870103,0.0001459,2]
[339495565,1727632241061,-182.52456,0.0001459,2]
[339495567,1727632241070,-182.52456,0.0001459,2]
[339495569,1727632241080,-9158.09309461,0.00014598,2]
[339495571,1727632241089,-314.85535679,0.00014598,2]
[339495574,1727632241099,-153.0,0.000146,2]
[339495576,1727632241108,-153.0,0.000146,2]
[339495578,1727632241118,-151.0,0.000146,2]
[339495580,1727632241127,-151.0,0.000146,2]
[339495582,1727632241137,-184.812923,0.000146,2]
[339495584,1727632241150,-184.812918,0.000146,2]
[339495586,1727632241160,-151.0,0.000146,2]
[339495588,1727632241170,-167.483486,0.000146,2]
[339495590,1727632241179,-167.483495,0.000146,2]
[339495592,1727632241190,-151.0,0.000146,2]
[339495594,1727632241200,-425.1616972,0.000146,2]
[339495596,1727632241209,-209.3051165,0.000146,2]
[339495599,1727632241221,-153.0,0.000146,2]
[339495601,1727632241231,-153.0,0.000146,2]
[339495603,1727632241240,-209.3051165,0.000146,2]
[339495605,1727632241250,-153.0,0.000146,2]
[339495607,1727632241259,-209.3051165,0.000146,2]
[339495609,1727632241269,-306.0,0.000146,2]
[339495611,1727632241278,-151.0,0.000146,2]
[339495613,1727632241287,-343.802464,0.000146,2]
[339495615,1727632241297,-448.497834,0.000146,2]
[339495617,1727632241306,-448.497834,0.000146,2]
[339495619,1727632241316,-151.0,0.000146,2]
[339495621,1727632241326,-153.0,0.000146,2]
[339495623,1727632241336,-499.193232,0.000146,2]
[339495625,1727632241346,-499.193232,0.000146,2]
[339495627,1727632241355,-151.0,0.000146,2]
[339495629,1727632241365,-151.0,0.000146,2]
[339495632,1727632241374,-151.0,0.000146,2]
[339495634,1727632241384,-151.0,0.000146,2]
[339495636,1727632241393,-185.742748,0.000146,2]
[339495638,1727632241402,-412.4195684,0.000146,2]
[339495640,1727632241412,-306.0,0.000146,2]
[339495642,1727632241424,-185.742748,0.000146,2]
[339495644,1727632241434,-438.896331,0.000146,2]
[339495646,1727632241444,-438.896331,0.000146,2]
[339495647,1727632241453,-721.989734,0.000146,2]
[339495648,1727632241463,-721.989734,0.000146,2]
[339495649,1727632241473,-412.4195684,0.000146,2]
[339495650,1727632241482,-412.4195684,0.000146,2]
[339495651,1727632241491,-151.0,0.000146,2]
[339495652,1727632241500,-153.0,0.000146,2]
[339495653,1727632241510,-2526.792654,0.000146,2]
[339495654,1727632241519,-2526.792654,0.000146,2]
[339495655,1727632241529,-975.4861341,0.000146,2]
[339495656,1727632241538,-153.0,0.000146,2]
[339495657,1727632241548,-568.18072,0.000146,2]
[339495658,1727632241558,-568.18072,0.000146,2]
[339495659,1727632241567,-1999.174001,0.000146,2]
[339495660,1727632241577,-1999.174001,0.000146,2]
[339495661,1727632241586,-153.0,0.000146,2]
[339495662,1727632241595,-297.468707,0.000146,2]
[339495663,1727632241605,-412.4195684,0.000146,2]
[339495664,1727632241615,-153.0,0.000146,2]
[339495665,1727632241624,-412.4195684,0.000146,2]
[339495666,1727632241634,-151.0,0.000146,2]
[339495668,1727632241644,-151.0,0.000146,2]
[339495670,1727632241653,-151.0,0.000146,2]
[339495672,1727632241664,-153.0,0.000146,2]
[339495674,1727632241674,-247.921225,0.000146,2]
[339495676,1727632241684,-151.0,0.000146,2]
[339495678,1727632241693,-247.921225,0.000146,2]
[339495680,1727632241704,-153.0,0.000146,2]
[339495682,1727632241714,-260.375573,0.000146,2]
[339495684,1727632241724,-260.375573,0.000146,2]
[339495686,1727632241734,-3028.199878,0.00014609,2]
[339495688,1727632241744,-3028.199878,0.00014609,2]
[339495690,1727632241754,-153.308977,0.00014619,2]